[Event "Early-Titled-Tuesday-Blitz-February-06-2024"]
[Site "Chess.com"]
[Date "2024.02.06"]
[Round "5"]
[White "Iskusnyh"]
[Black "FredddieCroderg"]
[Result "1-0"]
[WhiteElo "2659"]
[BlackElo "2376"]
[TimeControl "180+1"]
[EndTime "8:55:44 PST"]
[Termination "Iskusnyh won by checkmate"]

1. d4 {[%clk 0:03:00.7]} 1... d5 {[%clk 0:02:56.8]} 2. c4 {[%clk 0:02:59.5]}
2... e6 {[%clk 0:02:56.4]} 3. Nf3 {[%clk 0:02:57]} 3... Nf6 {[%clk 0:02:56.2]}
4. g3 {[%clk 0:02:56.5]} 4... dxc4 {[%clk 0:02:55.7]} 5. Bg2 {[%clk 0:02:53.8]}
5... a6 {[%clk 0:02:55.4]} 6. O-O {[%clk 0:02:49.9]} 6... Nc6 {[%clk 0:02:49.3]}
7. e3 {[%clk 0:02:46.9]} 7... Bd7 {[%clk 0:02:48]} 8. Qe2 {[%clk 0:02:42.4]}
8... b5 {[%clk 0:02:47.1]} 9. b3 {[%clk 0:02:42.2]} 9... cxb3 {[%clk 0:02:34.2]}
10. axb3 {[%clk 0:02:43.1]} 10... Be7 {[%clk 0:02:31.2]} 11. Bb2 {[%clk
0:02:40.9]} 11... O-O {[%clk 0:02:30.6]} 12. Rc1 {[%clk 0:02:39]} 12... Nb4
{[%clk 0:02:10.9]} 13. Ne5 {[%clk 0:02:26.2]} 13... Ra7 {[%clk 0:02:07.8]} 14.
Nc3 {[%clk 0:02:16.6]} 14... Nfd5 {[%clk 0:01:58.4]} 15. Nxd7 {[%clk 0:01:48.7]}
15... Qxd7 {[%clk 0:01:50.8]} 16. Nxb5 {[%clk 0:01:43.5]} 16... Rb7 {[%clk
0:01:32.8]} 17. Nc3 {[%clk 0:01:41.2]} 17... Nxc3 {[%clk 0:01:28.1]} 18. Rxc3
{[%clk 0:01:19.3]} 18... Nd5 {[%clk 0:01:27.5]} 19. Qxa6 {[%clk 0:00:58.4]}
19... Rfb8 {[%clk 0:01:26.5]} 20. Bxd5 {[%clk 0:00:44.4]} 20... Qxd5 {[%clk
0:01:16.7]} 21. Ba3 {[%clk 0:00:43.1]} 21... Bxa3 {[%clk 0:01:04.7]} 22. Rxa3
{[%clk 0:00:41]} 22... h5 {[%clk 0:01:02.8]} 23. h4 {[%clk 0:00:21.6]} 23...
Rxb3 {[%clk 0:00:56.1]} 24. Raxb3 {[%clk 0:00:20.1]} 24... Rxb3 {[%clk
0:00:55.7]} 25. Rxb3 {[%clk 0:00:20.1]} 25... Qxb3 {[%clk 0:00:55.7]} 26. Qc8+
{[%clk 0:00:20.3]} 26... Kh7 {[%clk 0:00:54.9]} 27. Qxc7 {[%clk 0:00:21.2]}
27... Qb1+ {[%clk 0:00:53.9]} 28. Kg2 {[%clk 0:00:20.9]} 28... Qe4+ {[%clk
0:00:53.7]} 29. Kg1 {[%clk 0:00:21.1]} 29... Qb1+ {[%clk 0:00:53.3]} 30. Kh2
{[%clk 0:00:21.4]} 30... Qf1 {[%clk 0:00:51.6]} 31. Qf4 {[%clk 0:00:21.8]} 31...
Kg8 {[%clk 0:00:49.5]} 32. Qf3 {[%clk 0:00:21.9]} 32... g6 {[%clk 0:00:47.9]}
33. Qa8+ {[%clk 0:00:21.8]} 33... Kh7 {[%clk 0:00:46.8]} 34. Qg2 {[%clk
0:00:22.7]} 34... Qe1 {[%clk 0:00:46]} 35. Qf3 {[%clk 0:00:22.7]} 35... Kg7
{[%clk 0:00:44.3]} 36. Kg2 {[%clk 0:00:22.8]} 36... Kg8 {[%clk 0:00:40.7]} 37.
e4 {[%clk 0:00:22.7]} 37... Qd2 {[%clk 0:00:36.5]} 38. d5 {[%clk 0:00:22.4]}
38... exd5 {[%clk 0:00:36.3]} 39. exd5 {[%clk 0:00:23.3]} 39... Kf8 {[%clk
0:00:36.4]} 40. Qe4 {[%clk 0:00:23.4]} 40... Qd1 {[%clk 0:00:31.9]} 41. Qe5
{[%clk 0:00:23]} 41... Qc2 {[%clk 0:00:24]} 42. d6 {[%clk 0:00:21.8]} 42... Qc6+
{[%clk 0:00:24]} 43. Kg1 {[%clk 0:00:21.8]} 43... Qc1+ {[%clk 0:00:14.6]} 44.
Kh2 {[%clk 0:00:20.7]} 44... Qd2 {[%clk 0:00:14.6]} 45. Qh8# {[%clk 0:00:20.1]}
1-0

[Event "Early-Titled-Tuesday-Blitz-February-06-2024"]
[Site "Chess.com"]
[Date "2024.02.06"]
[Round "5"]
[White "Lennis93"]
[Black "MasterKroket"]
[Result "0-1"]
[WhiteElo "2678"]
[BlackElo "2495"]
[TimeControl "180+1"]
[EndTime "8:55:44 PST"]
[Termination "MasterKroket won by resignation"]

1. c4 {[%clk 0:03:00.4]} 1... c5 {[%clk 0:02:59.1]} 2. Nf3 {[%clk 0:03:00.2]}
2... Nc6 {[%clk 0:02:59.6]} 3. d4 {[%clk 0:02:59.8]} 3... cxd4 {[%clk
0:02:59.2]} 4. Nxd4 {[%clk 0:03:00.7]} 4... Nf6 {[%clk 0:02:59.7]} 5. Nc3 {[%clk
0:03:00.1]} 5... e6 {[%clk 0:02:55.6]} 6. Ndb5 {[%clk 0:02:51.5]} 6... d6 {[%clk
0:02:56]} 7. Bf4 {[%clk 0:02:50.5]} 7... e5 {[%clk 0:02:56.3]} 8. Bg5 {[%clk
0:02:50.5]} 8... a6 {[%clk 0:02:56.4]} 9. Bxf6 {[%clk 0:02:49.8]} 9... gxf6
{[%clk 0:02:54.9]} 10. Na3 {[%clk 0:02:49.8]} 10... f5 {[%clk 0:02:53]} 11. g3
{[%clk 0:02:48]} 11... Bg7 {[%clk 0:02:49.9]} 12. Bg2 {[%clk 0:02:47.9]} 12...
O-O {[%clk 0:02:50.3]} 13. O-O {[%clk 0:02:47.5]} 13... Be6 {[%clk 0:02:48.4]}
14. Rc1 {[%clk 0:02:39.9]} 14... Rc8 {[%clk 0:02:47.9]} 15. b3 {[%clk
0:02:37.3]} 15... Qa5 {[%clk 0:02:34.7]} 16. Nab1 {[%clk 0:02:30.8]} 16... Rfd8
{[%clk 0:02:34.9]} 17. e3 {[%clk 0:02:18.9]} 17... b5 {[%clk 0:02:28.2]} 18.
cxb5 {[%clk 0:02:12]} 18... axb5 {[%clk 0:02:28.3]} 19. a4 {[%clk 0:02:10.9]}
19... bxa4 {[%clk 0:02:26.5]} 20. bxa4 {[%clk 0:02:09.2]} 20... Nb4 {[%clk
0:02:23.8]} 21. Qd2 {[%clk 0:01:53.6]} 21... d5 {[%clk 0:02:13.9]} 22. Nb5
{[%clk 0:01:25.7]} 22... d4 {[%clk 0:01:58.9]} 23. exd4 {[%clk 0:01:24.2]} 23...
exd4 {[%clk 0:01:58.6]} 24. Qg5 {[%clk 0:00:15.3]} 24... Qxa4 {[%clk 0:01:49.3]}
25. Rxc8 {[%clk 0:00:08]} 25... Rxc8 {[%clk 0:01:50.2]} 26. Nd6 {[%clk
0:00:08.1]} 26... Rb8 {[%clk 0:01:40.5]} 27. Nxf5 {[%clk 0:00:08.2]} 27... Bxf5
{[%clk 0:01:39.6]} 28. Qxf5 {[%clk 0:00:09.1]} 28... Qc2 {[%clk 0:01:31.7]} 29.
Be4 {[%clk 0:00:09.5]} 29... Qe2 {[%clk 0:01:27.9]} 30. Qxh7+ {[%clk 0:00:09.2]}
30... Kf8 {[%clk 0:01:28.2]} 31. Qf5 {[%clk 0:00:08.3]} 31... d3 {[%clk
0:01:20.7]} 32. Qc5+ {[%clk 0:00:07.6]} 32... Kg8 {[%clk 0:01:20.5]} 33. Qc4
{[%clk 0:00:07.5]} 33... Re8 {[%clk 0:01:06.6]} 34. Bg6 {[%clk 0:00:07.5]} 34...
Re6 {[%clk 0:00:58.3]} 35. Bxf7+ {[%clk 0:00:06.7]} 35... Kxf7 {[%clk
0:00:58.5]} 36. Qxb4 {[%clk 0:00:07.1]} 36... Bh6 {[%clk 0:00:51.9]} 37. Nc3
{[%clk 0:00:07.2]} 37... Qf3 {[%clk 0:00:47.1]} 38. Qc4 {[%clk 0:00:07.3]} 38...
d2 {[%clk 0:00:43.9]} 39. h4 {[%clk 0:00:07.3]} 39... Ke7 {[%clk 0:00:39.1]} 40.
Nd1 {[%clk 0:00:07.2]} 40... Re1 {[%clk 0:00:38.3]} 41. Qc5+ {[%clk 0:00:06.7]}
41... Kf7 {[%clk 0:00:37.1]} 42. Qc4+ {[%clk 0:00:06.7]} 42... Kg7 {[%clk
0:00:35.9]} 43. Kh2 {[%clk 0:00:07]} 43... Kh7 {[%clk 0:00:31.2]} 44. Kg1 {[%clk
0:00:07]} 44... Bg7 {[%clk 0:00:31.4]} 45. Qb5 {[%clk 0:00:06.5]} 45... Rxd1
{[%clk 0:00:22.8]} 46. Qf5+ {[%clk 0:00:06.4]} 46... Qxf5 {[%clk 0:00:22.9]} 47.
Rxd1 {[%clk 0:00:03.3]} 47... Qd3 {[%clk 0:00:22.7]} 48. Rxd2 {[%clk 0:00:03]}
48... Qxd2 {[%clk 0:00:22]} 0-1

[Event "Early-Titled-Tuesday-Blitz-February-06-2024"]
[Site "Chess.com"]
[Date "2024.02.06"]
[Round "5"]
[White "DDTerziev04"]
[Black "MaxLeto"]
[Result "1-0"]
[WhiteElo "2315"]
[BlackElo "2480"]
[TimeControl "180+1"]
[EndTime "8:55:44 PST"]
[Termination "DDTerziev04 won on time"]

1. e4 {[%clk 0:03:00.9]} 1... c5 {[%clk 0:02:59.6]} 2. Nf3 {[%clk 0:02:59.9]}
2... d6 {[%clk 0:03:00]} 3. d4 {[%clk 0:02:59.7]} 3... cxd4 {[%clk 0:03:00.9]}
4. Qxd4 {[%clk 0:03:00.1]} 4... Nf6 {[%clk 0:03:01.8]} 5. c4 {[%clk 0:02:59.5]}
5... Nc6 {[%clk 0:03:01.7]} 6. Qe3 {[%clk 0:02:59.2]} 6... g6 {[%clk 0:03:01.8]}
7. h3 {[%clk 0:02:58.7]} 7... Bg7 {[%clk 0:03:02.2]} 8. Be2 {[%clk 0:02:58.9]}
8... O-O {[%clk 0:03:02.7]} 9. O-O {[%clk 0:02:58.8]} 9... b6 {[%clk 0:02:37.5]}
10. Nc3 {[%clk 0:02:58.6]} 10... Bb7 {[%clk 0:02:37.5]} 11. Rd1 {[%clk
0:02:53.4]} 11... Nd7 {[%clk 0:02:37]} 12. b3 {[%clk 0:02:48.5]} 12... Nc5
{[%clk 0:02:29.2]} 13. Bb2 {[%clk 0:02:46.2]} 13... f5 {[%clk 0:01:33.3]} 14.
exf5 {[%clk 0:02:37.8]} 14... Rxf5 {[%clk 0:01:26.5]} 15. Rd2 {[%clk 0:02:28.4]}
15... Ne5 {[%clk 0:01:16.1]} 16. Nd5 {[%clk 0:02:03.1]} 16... e6 {[%clk
0:01:01.2]} 17. Nxe5 {[%clk 0:01:49.4]} 17... Bxe5 {[%clk 0:00:37.1]} 18. Bg4
{[%clk 0:01:28.6]} 18... exd5 {[%clk 0:00:20.3]} 19. Bxf5 {[%clk 0:01:21.5]}
19... gxf5 {[%clk 0:00:07.7]} 20. Bxe5 {[%clk 0:01:20.4]} 20... dxe5 {[%clk
0:00:08.6]} 21. Qxe5 {[%clk 0:01:20.7]} 21... Qg5 {[%clk 0:00:06.7]} 22. f4
{[%clk 0:01:13.1]} 22... Qg7 {[%clk 0:00:02.8]} 23. cxd5 {[%clk 0:01:11.6]}
23... Ne4 {[%clk 0:00:02.1]} 24. Rd4 {[%clk 0:01:02]} 24... Qd7 {[%clk
0:00:02.1]} 25. Rd3 {[%clk 0:00:51.5]} 25... Re8 {[%clk 0:00:02.1]} 26. Qd4
{[%clk 0:00:51.1]} 26... Qd6 {[%clk 0:00:02.3]} 27. Rf1 {[%clk 0:00:50.1]} 27...
Re7 {[%clk 0:00:02.4]} 28. Rff3 {[%clk 0:00:23.7]} 28... Ba6 {[%clk 0:00:02.7]}
29. Rd1 {[%clk 0:00:23.3]} 29... Qc5 {[%clk 0:00:02.8]} 30. d6 {[%clk
0:00:20.6]} 30... Rd7 {[%clk 0:00:02.4]} 31. Qxc5 {[%clk 0:00:17.6]} 31... bxc5
{[%clk 0:00:03.3]} 32. Re3 {[%clk 0:00:16.7]} 32... Kf7 {[%clk 0:00:03.8]} 33.
g4 {[%clk 0:00:16.7]} 33... Ke6 {[%clk 0:00:03]} 34. gxf5+ {[%clk 0:00:16.2]}
34... Kxf5 {[%clk 0:00:03.9]} 35. Rd5+ {[%clk 0:00:13.2]} 35... Kxf4 {[%clk
0:00:03.9]} 36. Re1 {[%clk 0:00:12.2]} 36... Rg7+ {[%clk 0:00:03.9]} 37. Kh2
{[%clk 0:00:11.9]} 37... Ng5 {[%clk 0:00:01.9]} 38. Rxg5 {[%clk 0:00:05]} 38...
Kxg5 {[%clk 0:00:01.2]} 39. Re6 {[%clk 0:00:04.6]} 1-0

[Event "Early-Titled-Tuesday-Blitz-February-06-2024"]
[Site "Chess.com"]
[Date "2024.02.06"]
[Round "5"]
[White "NowInChess"]
[Black "NoHeThTo"]
[Result "1/2-1/2"]
[WhiteElo "2330"]
[BlackElo "2613"]
[TimeControl "180+1"]
[EndTime "8:55:46 PST"]
[Termination "Game drawn by agreement"]

1. e4 {[%clk 0:03:00.9]} 1... c5 {[%clk 0:02:59.9]} 2. d3 {[%clk 0:03:00.8]}
2... g6 {[%clk 0:02:59.8]} 3. g3 {[%clk 0:03:01.2]} 3... Nc6 {[%clk 0:02:58.9]}
4. Bg2 {[%clk 0:03:01.7]} 4... Bg7 {[%clk 0:02:59.3]} 5. f4 {[%clk 0:03:02.1]}
5... d6 {[%clk 0:02:59.2]} 6. Nf3 {[%clk 0:03:02.4]} 6... Bg4 {[%clk 0:02:58.3]}
7. h3 {[%clk 0:03:02.1]} 7... Bxf3 {[%clk 0:02:58.1]} 8. Qxf3 {[%clk 0:03:03]}
8... e6 {[%clk 0:02:58.1]} 9. O-O {[%clk 0:03:02.3]} 9... Nge7 {[%clk
0:02:56.3]} 10. c3 {[%clk 0:02:57.9]} 10... O-O {[%clk 0:02:54.7]} 11. Be3
{[%clk 0:02:52]} 11... Qc7 {[%clk 0:02:51.2]} 12. Qf2 {[%clk 0:02:47.9]} 12...
b6 {[%clk 0:02:46.1]} 13. Nd2 {[%clk 0:02:46.5]} 13... Rad8 {[%clk 0:02:45]} 14.
Nf3 {[%clk 0:02:44.9]} 14... d5 {[%clk 0:02:43.3]} 15. e5 {[%clk 0:02:39.4]}
15... f6 {[%clk 0:02:43.1]} 16. d4 {[%clk 0:02:22.8]} 16... Nf5 {[%clk
0:02:38.8]} 17. g4 {[%clk 0:02:18]} 17... Nxe3 {[%clk 0:02:37.5]} 18. Qxe3
{[%clk 0:02:18.9]} 18... cxd4 {[%clk 0:02:37.4]} 19. cxd4 {[%clk 0:02:18.1]}
19... fxe5 {[%clk 0:02:37.2]} 20. fxe5 {[%clk 0:01:55.1]} 20... Qe7 {[%clk
0:02:31.5]} 21. Rac1 {[%clk 0:01:49.8]} 21... Na5 {[%clk 0:02:23.5]} 22. b3
{[%clk 0:01:46]} 22... Rc8 {[%clk 0:02:21]} 23. g5 {[%clk 0:01:41.1]} 23... Rfd8
{[%clk 0:02:11.6]} 24. Nh2 {[%clk 0:01:36.6]} 24... Qa3 {[%clk 0:01:58.2]} 25.
Rxc8 {[%clk 0:01:02.4]} 25... Rxc8 {[%clk 0:01:56.9]} 26. Qf2 {[%clk 0:01:00]}
26... Rf8 {[%clk 0:01:55.6]} 27. Qe2 {[%clk 0:00:57.8]} 27... Rxf1+ {[%clk
0:01:52.5]} 28. Bxf1 {[%clk 0:00:52.6]} 28... Qc1 {[%clk 0:01:48.6]} 29. h4
{[%clk 0:00:35]} 29... Qf4 {[%clk 0:01:29]} 30. Qf2 {[%clk 0:00:27]} 30... Qe4
{[%clk 0:01:17.9]} 31. Bh3 {[%clk 0:00:21.4]} 31... Nc6 {[%clk 0:01:08.8]} 32.
Bxe6+ {[%clk 0:00:20.7]} 32... Kh8 {[%clk 0:01:03.6]} 33. Qf7 {[%clk 0:00:18.3]}
33... Qxd4+ {[%clk 0:01:01.1]} 34. Kg2 {[%clk 0:00:14.6]} 34... Qe4+ {[%clk
0:00:57]} 35. Nf3 {[%clk 0:00:07.8]} 35... Qe2+ {[%clk 0:00:57]} 36. Kh1 {[%clk
0:00:05.6]} 36... Qf1+ {[%clk 0:00:56.7]} 37. Ng1 {[%clk 0:00:05.4]} 37... Qxf7
{[%clk 0:00:55.3]} 38. Bxf7 {[%clk 0:00:06.3]} 38... Nxe5 {[%clk 0:00:53.9]} 39.
Bxd5 {[%clk 0:00:06.5]} 39... Nd3 {[%clk 0:00:54.8]} 40. Nf3 {[%clk 0:00:05.6]}
40... Bc3 {[%clk 0:00:50.6]} 41. a4 {[%clk 0:00:05.8]} 41... Ne1 {[%clk
0:00:49.3]} 42. Nxe1 {[%clk 0:00:05.4]} 42... Bxe1 {[%clk 0:00:50.2]} 43. h5
{[%clk 0:00:05.6]} 43... gxh5 {[%clk 0:00:47.2]} 44. Bf3 {[%clk 0:00:06.1]}
44... h4 {[%clk 0:00:46.8]} 45. Be4 {[%clk 0:00:06.3]} 45... Kg7 {[%clk
0:00:45.1]} 46. Kg2 {[%clk 0:00:05.5]} 46... Bd2 {[%clk 0:00:45.6]} 47. Kh3
{[%clk 0:00:03.4]} 47... Bxg5 {[%clk 0:00:44.8]} 48. Kg4 {[%clk 0:00:03.9]}
48... h6 {[%clk 0:00:44.6]} 49. Kh3 {[%clk 0:00:04.3]} 49... Kf6 {[%clk
0:00:45.3]} 50. Bd5 {[%clk 0:00:04.3]} 50... Ke5 {[%clk 0:00:46.2]} 51. Bc4
{[%clk 0:00:04.8]} 51... Kd4 {[%clk 0:00:46.6]} 52. Bg8 {[%clk 0:00:05.2]} 52...
Kc3 {[%clk 0:00:45.2]} 53. Bf7 {[%clk 0:00:05.6]} 53... Kb4 {[%clk 0:00:45.5]}
54. Bg8 {[%clk 0:00:06.2]} 54... Kc5 {[%clk 0:00:46.3]} 55. Bf7 {[%clk
0:00:06.7]} 55... Kd4 {[%clk 0:00:47.2]} 56. Bg8 {[%clk 0:00:07.3]} 56... Kc3
{[%clk 0:00:48.1]} 57. Bf7 {[%clk 0:00:07.7]} 57... Kb4 {[%clk 0:00:49]} 58. Bg8
{[%clk 0:00:08.2]} 58... Ka5 {[%clk 0:00:49.9]} 59. Bf7 {[%clk 0:00:08.8]} 59...
a6 {[%clk 0:00:50.8]} 60. Bg8 {[%clk 0:00:08.8]} 60... b5 {[%clk 0:00:51.7]} 61.
axb5 {[%clk 0:00:09]} 61... Kxb5 {[%clk 0:00:52.5]} 62. Bc4+ {[%clk 0:00:08.4]}
62... Kb4 {[%clk 0:00:53.4]} 63. Bxa6 {[%clk 0:00:08.2]} 63... Kxb3 {[%clk
0:00:52.7]} 64. Bc8 {[%clk 0:00:08.8]} 1/2-1/2

[Event "Early-Titled-Tuesday-Blitz-February-06-2024"]
[Site "Chess.com"]
[Date "2024.02.06"]
[Round "5"]
[White "Zavgorodniy_Sergiy"]
[Black "shimastream"]
[Result "0-1"]
[WhiteElo "2613"]
[BlackElo "3012"]
[TimeControl "180+1"]
[EndTime "8:55:49 PST"]
[Termination "shimastream won on time"]

1. e4 {[%clk 0:03:00.9]} 1... e5 {[%clk 0:02:56.8]} 2. Nf3 {[%clk 0:02:58.4]}
2... Nc6 {[%clk 0:02:57.1]} 3. Bb5 {[%clk 0:02:57.3]} 3... Bc5 {[%clk
0:02:56.2]} 4. Bxc6 {[%clk 0:02:55.5]} 4... dxc6 {[%clk 0:02:55.9]} 5. d3 {[%clk
0:02:56.2]} 5... f6 {[%clk 0:02:41.1]} 6. Be3 {[%clk 0:02:55.1]} 6... Bd6 {[%clk
0:02:35.2]} 7. Nbd2 {[%clk 0:02:50.9]} 7... Be6 {[%clk 0:02:34.5]} 8. O-O {[%clk
0:02:48.3]} 8... Ne7 {[%clk 0:02:33]} 9. c4 {[%clk 0:02:41.2]} 9... Ng6 {[%clk
0:02:25.9]} 10. c5 {[%clk 0:02:40.3]} 10... Be7 {[%clk 0:02:25.9]} 11. d4 {[%clk
0:02:40.9]} 11... O-O {[%clk 0:02:21.1]} 12. Rc1 {[%clk 0:02:35.8]} 12... Qe8
{[%clk 0:02:05.8]} 13. h3 {[%clk 0:02:15.3]} 13... Rd8 {[%clk 0:02:02.9]} 14.
Qc2 {[%clk 0:01:55.8]} 14... Qf7 {[%clk 0:01:48.8]} 15. Nb3 {[%clk 0:01:29.8]}
15... b6 {[%clk 0:01:09.1]} 16. dxe5 {[%clk 0:01:21.9]} 16... fxe5 {[%clk
0:01:05.7]} 17. Ng5 {[%clk 0:01:18.5]} 17... Bxg5 {[%clk 0:01:05.1]} 18. Bxg5
{[%clk 0:01:19.4]} 18... Rc8 {[%clk 0:01:02]} 19. Nd2 {[%clk 0:00:49.8]} 19...
h6 {[%clk 0:01:00.1]} 20. Be3 {[%clk 0:00:50]} 20... Nh4 {[%clk 0:01:00.7]} 21.
Kh1 {[%clk 0:00:33.2]} 21... Qh5 {[%clk 0:00:45.1]} 22. Rg1 {[%clk 0:00:26.4]}
22... Rf6 {[%clk 0:00:11]} 23. Nf1 {[%clk 0:00:25.5]} 23... Qf7 {[%clk
0:00:08.8]} 24. Ng3 {[%clk 0:00:21.8]} 24... Bxa2 {[%clk 0:00:08.1]} 25. Ra1
{[%clk 0:00:20.5]} 25... Bb3 {[%clk 0:00:08.1]} 26. Qc3 {[%clk 0:00:20.2]} 26...
a5 {[%clk 0:00:07.5]} 27. Qxe5 {[%clk 0:00:20.1]} 27... Ng6 {[%clk 0:00:07.3]}
28. Qc3 {[%clk 0:00:19.2]} 28... a4 {[%clk 0:00:07]} 29. cxb6 {[%clk 0:00:19.3]}
29... cxb6 {[%clk 0:00:07.9]} 30. Bxb6 {[%clk 0:00:18.9]} 30... Nf4 {[%clk
0:00:08.2]} 31. Be3 {[%clk 0:00:17.5]} 31... Nh5 {[%clk 0:00:07]} 32. Nxh5
{[%clk 0:00:14.5]} 32... Qxh5 {[%clk 0:00:07.9]} 33. Kh2 {[%clk 0:00:13.1]}
33... Re8 {[%clk 0:00:07.3]} 34. f3 {[%clk 0:00:12.6]} 34... Qh4 {[%clk
0:00:06.8]} 35. Qd2 {[%clk 0:00:10.9]} 35... Rg6 {[%clk 0:00:07.1]} 36. Bf2
{[%clk 0:00:10.1]} 36... Qf6 {[%clk 0:00:07.4]} 37. Rac1 {[%clk 0:00:09.6]}
37... Kh7 {[%clk 0:00:06.7]} 38. Qd4 {[%clk 0:00:09.7]} 38... Qe6 {[%clk
0:00:06.6]} 39. Kh1 {[%clk 0:00:09.7]} 39... Rf8 {[%clk 0:00:06.6]} 40. Qe3
{[%clk 0:00:09.8]} 40... Rgf6 {[%clk 0:00:06.3]} 41. Rc5 {[%clk 0:00:09.7]}
41... Rxf3 {[%clk 0:00:05.4]} 0-1

[Event "Early-Titled-Tuesday-Blitz-February-06-2024"]
[Site "Chess.com"]
[Date "2024.02.06"]
[Round "5"]
[White "Martial2008"]
[Black "ChristopherYoo"]
[Result "0-1"]
[WhiteElo "2680"]
[BlackElo "2962"]
[TimeControl "180+1"]
[EndTime "8:55:51 PST"]
[Termination "ChristopherYoo won by resignation"]

1. d4 {[%clk 0:03:00.9]} 1... Nf6 {[%clk 0:02:55.5]} 2. Nf3 {[%clk 0:03:00.3]}
2... g6 {[%clk 0:02:55.7]} 3. Bg5 {[%clk 0:03:00.1]} 3... Bg7 {[%clk 0:02:55.9]}
4. Nbd2 {[%clk 0:03:00]} 4... h6 {[%clk 0:02:52.4]} 5. Bh4 {[%clk 0:02:58.6]}
5... O-O {[%clk 0:02:47.3]} 6. c3 {[%clk 0:02:56.4]} 6... d6 {[%clk 0:02:46.9]}
7. e4 {[%clk 0:02:55.8]} 7... c5 {[%clk 0:02:47.2]} 8. dxc5 {[%clk 0:02:53.7]}
8... dxc5 {[%clk 0:02:48.1]} 9. Be2 {[%clk 0:02:53.4]} 9... Nc6 {[%clk
0:02:45.2]} 10. O-O {[%clk 0:02:52.2]} 10... Nh5 {[%clk 0:02:44.2]} 11. Qc2
{[%clk 0:02:51.1]} 11... Nf4 {[%clk 0:02:43.4]} 12. Nc4 {[%clk 0:02:51.1]} 12...
b6 {[%clk 0:01:49]} 13. Rad1 {[%clk 0:02:45.3]} 13... Qc7 {[%clk 0:01:42.3]} 14.
Bg3 {[%clk 0:02:42.6]} 14... Nxe2+ {[%clk 0:01:41.3]} 15. Qxe2 {[%clk
0:02:38.7]} 15... Qb7 {[%clk 0:01:41.6]} 16. Nfe5 {[%clk 0:02:21.9]} 16... Nxe5
{[%clk 0:01:41.3]} 17. Bxe5 {[%clk 0:02:22.8]} 17... f6 {[%clk 0:01:39.7]} 18.
Bg3 {[%clk 0:02:22.5]} 18... Be6 {[%clk 0:01:33.9]} 19. b3 {[%clk 0:02:16.2]}
19... Rfd8 {[%clk 0:01:31.2]} 20. f3 {[%clk 0:02:14.5]} 20... Qc6 {[%clk
0:01:08.6]} 21. Ne3 {[%clk 0:02:12.6]} 21... a5 {[%clk 0:01:03]} 22. c4 {[%clk
0:02:09.7]} 22... Bf8 {[%clk 0:00:59]} 23. Nd5 {[%clk 0:02:09.1]} 23... Bf7
{[%clk 0:00:53.5]} 24. a4 {[%clk 0:02:06.8]} 24... Rd7 {[%clk 0:00:51.7]} 25.
Rd2 {[%clk 0:02:04.4]} 25... Rad8 {[%clk 0:00:49.5]} 26. Rfd1 {[%clk 0:02:03.9]}
26... Kg7 {[%clk 0:00:41.7]} 27. e5 {[%clk 0:00:48]} 27... Bxd5 {[%clk
0:00:37.3]} 28. exf6+ {[%clk 0:00:42.3]} 28... exf6 {[%clk 0:00:36.4]} 29. cxd5
{[%clk 0:00:42.3]} 29... Rxd5 {[%clk 0:00:36.6]} 30. Rxd5 {[%clk 0:00:25.9]}
30... Rxd5 {[%clk 0:00:36]} 31. Rxd5 {[%clk 0:00:25.4]} 31... Qxd5 {[%clk
0:00:36.3]} 32. Qc4 {[%clk 0:00:25.8]} 32... Qd1+ {[%clk 0:00:30.3]} 33. Kf2
{[%clk 0:00:25.6]} 33... h5 {[%clk 0:00:22.8]} 34. Bc7 {[%clk 0:00:22.7]} 34...
Qd2+ {[%clk 0:00:20.1]} 35. Kf1 {[%clk 0:00:21.6]} 35... Bd6 {[%clk 0:00:20.2]}
36. Bxb6 {[%clk 0:00:13.5]} 36... Bxh2 {[%clk 0:00:19.5]} 37. Bxc5 {[%clk
0:00:11.6]} 37... Qd1+ {[%clk 0:00:19.5]} 38. Kf2 {[%clk 0:00:12.2]} 38... Qg1+
{[%clk 0:00:14.6]} 39. Ke2 {[%clk 0:00:12.4]} 39... Qxg2+ {[%clk 0:00:14.9]} 40.
Ke3 {[%clk 0:00:09.4]} 40... Bg1+ {[%clk 0:00:15]} 41. Ke4 {[%clk 0:00:08.9]}
41... f5+ {[%clk 0:00:09.7]} 42. Kf4 {[%clk 0:00:05.6]} 42... Qh2+ {[%clk
0:00:09.7]} 43. Kg5 {[%clk 0:00:04.9]} 43... Qg3+ {[%clk 0:00:10.1]} 44. Qg4
{[%clk 0:00:04.9]} 44... hxg4 {[%clk 0:00:10.1]} 45. Bf8+ {[%clk 0:00:04.9]}
45... Kf7 {[%clk 0:00:09.5]} 46. f4 {[%clk 0:00:05.8]} 46... Qh3 {[%clk
0:00:09.2]} 0-1